fUST/lending_fUST_20240926
["ID","MTS","AMOUNT","RATE_DAILY","PERIOD"]
[339196639,1727292639952,-5879.80503515,0.00016714,2]
[339196641,1727292639961,-300.0,0.00017116,2]
[339196643,1727292639971,-300.0,0.00017116,2]
[339196644,1727292639981,-1217.0,0.00017117,2]
[339196645,1727292639991,-525.0,0.00017117,2]
[339196646,1727292640000,-300.0,0.00017197,2]
[339196647,1727292640009,-153.0,0.00017441,2]
[339196648,1727292640019,-306.0,0.000175,2]
[339196649,1727292640029,-153.0,0.00017541,2]
[339196650,1727292640038,-306.0,0.000176,2]
[339196651,1727292640047,-153.0,0.00017641,2]
[339196652,1727292640057,-1026.68105497,0.000181,2]
[339196653,1727292640066,-7146.18197968,0.00018166,2]
[339196654,1727292640075,-1000.0,0.00018179,2]
[339196655,1727292640084,-1000.0,0.00018239,2]
[339196656,1727292640094,-198.11,0.00018246,2]
[339196657,1727292640104,-1000.0,0.0001825,2]
[339196658,1727292640113,-25563.22634569,0.00018259,2]
[339196659,1727292640122,-1578.90810573,0.0001826,2]
[339196660,1727292640132,-150.0,0.000183,2]
[339196661,1727292640142,-151.0,0.0001831,2]
[339196662,1727292640151,-151.0,0.0001831,2]
[339196663,1727292640161,-151.0,0.0001831,2]
[339196664,1727292640170,-151.0,0.0001831,2]
[339196665,1727292640179,-151.0,0.0001831,2]
[339196666,1727292640189,-500.0,0.00018328,2]
[339196667,1727292640198,-168.81818149,0.00018328,2]
[339196668,1727292640207,-29820.38006076,0.00018328,2]
[339196677,1727292643087,-3622.34482225,0.00018328,2]
[339196678,1727292643098,-107.80918821,0.00018328,2]
[339196679,1727292643107,-870.7423926,0.00018328,2]
[339196680,1727292643119,-452.112233,0.00018328,2]
[339196722,1727292646134,-30722.44022711,0.00018328,2]
[339196727,1727292803937,61575.71458,0.00014,2]
[339196735,1727293105109,386.890469,0.00013014,2]
[339196738,1727293541113,-478.24,0.000164,2]
[339196739,1727293541140,-166.666667,0.00016563,2]
[339196740,1727293541165,-300.0,0.00016968,2]
[339196741,1727293541191,-18.69867789,0.00016968,2]
[339196742,1727293556124,-281.30132211,0.00016968,2]
[339196743,1727293556148,-625.7037172,0.00016969,2]
[339196744,1727293628123,-300.0,0.00016968,2]
[339196745,1727293628146,-300.0,0.00016968,2]
[339196746,1727293628170,-372.6142723,0.00016969,2]
[339196747,1727293649121,-232.34151135,0.00016969,2]
[339196748,1727293691289,183.99,0.00010959,2]
[339196749,1727293723031,428.906981,0.00013014,2]
[339196752,1727293804880,186.6941993,0.00010959,2]
[339196753,1727293804902,118.6758007,0.00010959,2]
[339196800,1727293832185,-185.465549,0.00015381,2]
[339196802,1727293832195,-2324.534444,0.00016483,2]
[339196804,1727293832206,-496.5792398,0.00016483,2]
[339196806,1727293832215,-479.2,0.000165,2]
[339196808,1727293832224,-300.0,0.00016697,2]
[339196810,1727293832234,-2199.04475506,0.00016698,2]
[339196812,1727293832246,-19574.24,0.00016698,2]
[339196959,1727293838593,-234.18004454,0.00016698,2]
[339196960,1727293838602,-166.666667,0.00016994,2]
[339196961,1727293838612,-150.0,0.00017351,2]
[339196962,1727293838622,-525.0,0.00017351,2]
[339196963,1727293838631,-1217.0,0.00017351,2]
[339196964,1727293838642,-150.0,0.00017351,2]
[339196966,1727293838653,-150.0,0.00017352,2]
[339196967,1727293838665,-166.666667,0.00017426,2]
[339196969,1727293838674,-7146.18197968,0.00017812,2]
[339196971,1727293838684,-4150.65944896,0.0001809,2]
[339196973,1727293838694,-1000.0,0.0001819,2]
[339196975,1727293838704,-500.0,0.00018199,2]
[339196977,1727293838713,-500.0,0.00018199,2]
[339196978,1727293838724,-500.0,0.00018199,2]
[339196979,1727293838734,-500.0,0.00018199,2]
[339196980,1727293838747,-500.0,0.00018199,2]
[339196981,1727293838756,-398.10185426,0.00018199,2]
[339196982,1727293838766,-20126.72613783,0.000182,2]
[339196983,1727293838776,-1421.01729513,0.00018219,2]
[339196984,1727293838785,-6326.51437741,0.00018249,7]
[339196985,1727293838801,-622.76794784,0.00018249,7]
[339196986,1727293838813,-1063.72380912,0.00018249,7]
[339197001,1727293840230,-353.1278318,0.00018249,7]
[339197002,1727293840284,-576.32328909,0.00018249,7]
[339197003,1727293840294,-3848.0,0.00018249,2]
[339197004,1727293840304,-46799.0840625,0.0001827,2]
[339197005,1727293840313,-12966.5679195,0.0001827,2]
[339197018,1727293843204,-150.0,0.00017351,2]
[339197019,1727293843213,-161.69803547,0.0001827,2]
[339197020,1727293843225,-7416.12424416,0.0001827,2]
[339197021,1727293843257,-1075.48864695,0.0001827,2]
[339197053,1727293846164,-985.85,0.0001827,2]
[339197054,1727293846219,-28438.14596592,0.0001827,2]
[339197055,1727293846230,-500.1104338,0.00018273,2]
[339197056,1727293846240,-161.04944284,0.00018273,2]
[339197057,1727293846251,-500.0,0.00018273,2]
[339197058,1727293846260,-500.0,0.00018273,2]
[339197059,1727293846269,-468.17272704,0.00018278,2]
[339197060,1727293846278,-97081.74046665,0.00018279,2]
[339197061,1727293846287,-22478.85782771,0.00018279,2]
[339197062,1727293846297,-162.4299233,0.00018279,2]
[339197063,1727293846306,-46799.0840625,0.0001828,2]
[339197064,1727293846315,-51043.874812,0.0001828,2]
[339197065,1727293846323,-93598.168125,0.0001828,2]
[339197066,1727293846332,-32130.46051107,0.0001828,2]
[339197067,1727293846345,-1957.74991629,0.0001828,2]
[339197077,1727294377598,383.741545,0.00013014,2]
[339197080,1727294576251,837.12,0.00021999,120]
[339197081,1727294576560,837.12,0.00021999,120]
[339197082,1727294576888,837.12,0.00021999,120]
[339197083,1727294577217,837.12,0.00021999,120]
[339197084,1727294577555,837.12,0.00021999,120]
[339197085,1727294578026,837.12,0.00021999,120]
[339197086,1727294578342,837.12,0.00021999,120]
[339197087,1727294578650,837.12,0.00021999,120]
[339197088,1727294579205,837.12,0.00021999,120]
[339197089,1727294579531,837.12,0.00021999,120]
[339197090,1727294580503,837.12,0.00021999,120]
[339197091,1727294580599,837.12,0.00021999,120]
[339197092,1727294580975,837.12,0.00021999,120]
[339197093,1727294581345,837.12,0.00021999,120]
[339197094,1727294581678,837.12,0.00021999,120]
[339197095,1727294582001,837.12,0.00021999,120]
[339197096,1727294582515,837.12,0.00021999,120]
[339197097,1727294582888,837.12,0.00021999,120]
[339197098,1727294583576,837.12,0.00021999,120]
[339197099,1727294583824,837.12,0.00021999,120]
[339197100,1727294584293,837.12,0.00021999,120]
[339197101,1727294584798,837.12,0.00021999,120]
[339197102,1727294585317,837.12,0.00021999,120]
[339197103,1727294585667,837.3387626,0.00021999,120]
[339197105,1727294755154,-422.1957064,0.000165,2]
[339197106,1727294826108,-9.0842936,0.000165,2]
[339197107,1727294826130,-298.138362,0.00016663,2]
[339197108,1727294826154,-21.55947163,0.00016664,2]
[339197109,1727294835122,-364.67570927,0.00016664,2]
[339197110,1727294835143,-6.62300885,0.00017053,2]
[339197111,1727294843151,-218.37699115,0.00017053,2]
[339197112,1727294843174,-49.29840718,0.000171,2]
[339197117,1727294992878,186.69419832,0.00013014,2]
[339197118,1727294992904,228.40006968,0.00013014,2]
[339197119,1727295006509,6.43834854,0.00010959,2]
[339197120,1727295006534,180.26165146,0.00010959,2]
[339197130,1727295035100,-500.0,0.00014594,2]
[339197131,1727295035110,-388.16,0.000165,2]
[339197132,1727295035120,-150.0,0.00016968,2]
[339197133,1727295035129,-175.70159282,0.000171,2]
[339197134,1727295035138,-1000.0,0.000171,2]
[339197135,1727295035147,-225.0,0.00017147,2]
[339197136,1727295035157,-225.0,0.00017193,2]
[339197137,1727295035166,-225.0,0.0001724,2]
[339197138,1727295035175,-225.0,0.00017287,2]
[339197139,1727295035185,-225.0,0.00017334,2]
[339197140,1727295035195,-120.92631468,0.00017348,2]
[339197142,1727295035207,-177.21204732,0.00017348,2]
[339197144,1727295035218,-300.0,0.0001735,2]
[339197146,1727295035228,-300.0,0.0001735,2]
[339197148,1727295035237,-150.0,0.00017351,2]
[339197150,1727295035247,-87.4584191,0.00017351,2]
[339197182,1727295038612,-62.5415809,0.00017351,2]
[339197184,1727295038621,-525.0,0.00017351,2]
[339197186,1727295038630,-150.0,0.00017351,2]
[339197188,1727295038639,-1217.0,0.00017351,2]
[339197189,1727295038649,-225.0,0.0001738,2]
[339197190,1727295038658,-225.0,0.00017427,2]
[339197191,1727295038667,-225.0,0.00017474,2]
[339197192,1727295038676,-225.0,0.00017521,2]
[339197193,1727295038685,-225.0,0.00017567,2]
[339197194,1727295038694,-225.0,0.00017614,2]
[339197195,1727295038703,-158.68969617,0.00017661,2]
[339197270,1727295040462,-66.31030383,0.00017661,2]
[339197271,1727295040472,-151.0,0.00017707,2]
[339197272,1727295040481,-225.0,0.00017708,2]
[339197273,1727295040490,-225.0,0.00017755,2]
[339197274,1727295040500,-225.0,0.00017801,2]
[339197275,1727295040510,-150.0,0.00017814,2]
[339197276,1727295040520,-225.0,0.00017848,2]
[339197277,1727295040530,-151.0,0.00017888,2]
[339197278,1727295040539,-225.0,0.00017895,2]
[339197279,1727295040548,-225.0,0.00017942,2]
[339197280,1727295040558,-7146.18197968,0.00017967,2]
[339197281,1727295040568,-18254.00902731,0.00017987,3]
[339197282,1727295040578,-1858.61896756,0.00018,2]
[339197283,1727295040587,-4000.0,0.00018,2]
[339197284,1727295040596,-158.488,0.00018,2]
[339197285,1727295040606,-298.138362,0.00018033,2]
[339197286,1727295040616,-151.0,0.00018069,2]
[339197287,1727295040625,-4422.80944227,0.00018149,2]
[339197288,1727295040635,-327.3117662,0.00018167,2]
[339197289,1727295040644,-327.31176617,0.00018168,2]
[339197290,1727295040653,-327.31176617,0.00018169,2]
[339197291,1727295040663,-327.31176617,0.00018169,2]
[339197292,1727295040671,-327.31176617,0.0001817,2]
[339197293,1727295040681,-1000.0,0.0001817,2]
[339197294,1727295040690,-1000.0,0.00018175,2]
[339197295,1727295040699,-160.0,0.00018192,3]
[339197296,1727295040709,-576.3232891,0.00018208,7]
[339197297,1727295040721,-3848.0,0.00018238,2]
[339197298,1727295040731,-151.0,0.00018249,2]
[339197299,1727295040740,-500.0,0.00018257,2]
[339197300,1727295040751,-584.21514786,0.00018257,2]
[339197301,1727295040761,-500.0,0.00018257,2]
[339197302,1727295040770,-500.0,0.00018257,2]
[339197303,1727295040779,-500.0,0.00018257,2]
[339197304,1727295040789,-500.0,0.00018257,2]
[339197305,1727295040798,-500.0,0.00018257,2]
[339197306,1727295040807,-500.0,0.00018257,2]
[339197307,1727295040816,-500.0,0.00018257,2]
[339197308,1727295040825,-314.24280576,0.00018258,2]
[339197309,1727295040835,-199.01274162,0.00018258,2]
[339197310,1727295040846,-500.0,0.00018258,2]
[339197311,1727295040855,-171.18179866,0.00018258,2]
[339197312,1727295040864,-222.66506145,0.00018258,2]
[339197313,1727295040873,-500.0,0.00018258,2]
[339197314,1727295040883,-406.78681372,0.00018258,2]
[339197315,1727295040892,-12075.12269939,0.00018258,2]
[339197341,1727295046434,-300.78721,0.00018258,2]
[339197342,1727295046447,-548.53406688,0.00018258,2]
[339197343,1727295046460,-613.5885,0.00018258,2]
[339197344,1727295046472,-3821.41430996,0.00018258,2]
[339197345,1727295046484,-411.11179919,0.00018258,2]
[339197346,1727295046496,-1173.6576485,0.00018258,2]
[339197347,1727295099915,754.24,0.00010959,2]
[339197353,1727295485320,500.0,0.00021999,120]
[339197354,1727295485699,476.08,0.00021999,120]
[339197356,1727295621458,364.554468,0.00013014,2]
[339197359,1727295941139,-500.0,0.00014594,2]
[339197360,1727295941162,-160.0,0.00015979,2]
[339197361,1727295941183,-160.0,0.00016437,2]
[339197362,1727295941204,-390.97,0.000166,2]
[339197363,1727295941226,-161.95168062,0.00016711,2]
[339197364,1727295941247,-166.0176967,0.0001703,2]
[339197365,1727295941268,-235.0,0.00017334,2]
[339197366,1727295941295,-56.8642508,0.000175,2]
[339197367,1727295947095,-383.38569174,0.000175,2]
[339197368,1727295947116,-298.63392827,0.00017579,2]
[339197370,1727296036107,-500.0,0.00014594,2]
[339197371,1727296036131,-226.36607173,0.00017579,2]
[339197372,1727296036151,-150.0,0.00017579,2]
[339197373,1727296036173,-821.49362758,0.00017579,2]
[339197374,1727296046109,-395.50637242,0.00017579,2]
[339197375,1727296046129,-300.0,0.00017674,2]
[339197376,1727296046149,-138.1234994,0.00017674,2]
[339197377,1727296164115,-373.70636781,0.00014594,2]
[339197420,1727296232520,-373.4,0.000166,2]
[339197422,1727296232530,-212.765547,0.00017096,2]
[339197424,1727296232540,-150.0,0.00017579,2]
[339197426,1727296232550,-525.0,0.00017579,2]
[339197428,1727296232560,-300.0,0.00017674,2]
[339197430,1727296232573,-153.0,0.00017675,2]
[339197432,1727296232582,-153.0,0.00017675,2]
[339197435,1727296232593,-153.0,0.00017675,2]
[339197437,1727296232603,-153.0,0.00017675,2]
[339197439,1727296232613,-153.0,0.00017675,2]
[339197441,1727296232622,-153.0,0.00017675,2]
[339197443,1727296232632,-153.0,0.00017675,2]
[339197445,1727296232642,-153.0,0.00017675,2]
[339197447,1727296232652,-153.0,0.00017675,2]
[339197449,1727296232661,-153.0,0.00017675,2]
[339197451,1727296232670,-153.0,0.00017675,2]
[339197453,1727296232680,-153.0,0.00017675,2]
[339197455,1727296232689,-153.0,0.00017675,2]
[339197457,1727296232699,-153.0,0.00017675,2]
[339197459,1727296232708,-153.0,0.00017675,2]
[339197460,1727296232717,-153.0,0.00017675,2]
[339197462,1727296232726,-153.0,0.00017675,2]
[339197464,1727296232736,-153.0,0.00017675,2]
[339197465,1727296232746,-153.0,0.00017675,2]
[339197466,1727296232756,-153.0,0.00017675,2]
[339197467,1727296232766,-153.0,0.00017675,2]
[339197468,1727296232775,-153.0,0.00017675,2]
[339197469,1727296232785,-153.0,0.00017675,2]
[339197470,1727296232794,-153.0,0.00017675,2]
[339197471,1727296232804,-153.0,0.00017675,2]
[339197472,1727296232814,-153.0,0.00017675,2]
[339197473,1727296232825,-153.0,0.00017675,2]
[339197474,1727296232836,-153.0,0.00017675,2]
[339197475,1727296232847,-153.0,0.00017675,2]
[339197476,1727296232858,-153.0,0.00017675,2]
[339197477,1727296232867,-153.0,0.00017675,2]
[339197478,1727296232876,-153.0,0.00017675,2]
[339197479,1727296232885,-153.0,0.00017675,2]
[339197480,1727296232895,-153.0,0.00017675,2]
[339197481,1727296232903,-153.0,0.00017675,2]
[339197482,1727296232913,-7146.18197968,0.00018051,2]
[339197483,1727296232923,-3869.95826196,0.00018058,2]
[339197484,1727296232933,-153.0,0.000181,2]
[339197485,1727296232943,-541.4426381,0.0001811,2]
[339197486,1727296232954,-1000.0,0.00018114,2]
[339197487,1727296232964,-1000.0,0.00018138,2]
[339197488,1727296232974,-27400.99064859,0.0001815,2]
[339197489,1727296232983,-158.488,0.0001817,2]
[339197490,1727296232993,-1000.0,0.00018186,2]
[339197491,1727296233003,-3848.0,0.00018188,2]
[339197492,1727296233013,-150.112233,0.000182,2]
[339197493,1727296233023,-150.112233,0.000182,2]
[339197494,1727296233032,-150.112233,0.000182,2]
[339197495,1727296233042,-6032.13666134,0.00018217,2]
[339197496,1727296233052,-6032.13666134,0.00018218,2]
[339197497,1727296233062,-151.0,0.00018228,2]
[339197498,1727296233071,-151.0,0.00018228,2]
[339197499,1727296233081,-151.0,0.00018228,2]
[339197500,1727296233091,-321.747253,0.00018228,2]
[339197501,1727296233100,-321.747253,0.00018228,2]
[339197502,1727296233112,-151.0,0.00018228,2]
[339197503,1727296233121,-151.0,0.00018228,2]
[339197504,1727296233131,-255.341265,0.00018228,2]
[339197505,1727296233141,-151.0,0.00018228,2]
[339197506,1727296233151,-255.341265,0.00018228,2]
[339197507,1727296233160,-151.0,0.00018228,2]
[339197508,1727296233169,-284.716702,0.00018228,2]
[339197509,1727296233179,-284.716702,0.00018228,2]
[339197510,1727296233190,-151.0,0.00018228,2]
[339197511,1727296233199,-223.87774,0.00018228,2]
[339197512,1727296233208,-151.0,0.00018228,2]
[339197513,1727296233217,-151.0,0.00018228,2]
[339197514,1727296233226,-151.0,0.00018228,2]
[339197515,1727296233236,-161.32102,0.00018228,2]
[339197516,1727296233246,-166.543572,0.00018228,2]
[339197517,1727296233256,-166.543572,0.00018228,2]
[339197518,1727296233266,-65044.76611266,0.00018229,2]
[339197519,1727296233275,-15060.83474457,0.00018229,2]
[339197520,1727296233285,-9048.20499201,0.00018229,2]
[339197521,1727296233294,-151.0,0.00018238,2]
[339197522,1727296233304,-253.903047,0.00018238,2]
[339197523,1727296233313,-253.903047,0.00018238,2]
[339197524,1727296233323,-9048.20499201,0.00018239,2]
[339197525,1727296233333,-162.4299233,0.00018239,2]
[339197526,1727296233342,-151.0,0.00018239,2]
[339197527,1727296233352,-151.0,0.00018239,2]
[339197528,1727296233364,-151.0,0.00018239,2]
[339197529,1727296233373,-151.0,0.00018239,2]
[339197530,1727296233383,-151.0,0.00018239,2]
[339197531,1727296233392,-178.852709,0.00018239,2]
[339197532,1727296233401,-178.852709,0.00018239,2]
[339197533,1727296233411,-151.0,0.00018239,2]
[339197534,1727296233421,-151.0,0.00018239,2]
[339197535,1727296233431,-151.0,0.00018239,2]
[339197536,1727296233440,-151.0,0.00018239,2]
[339197537,1727296233449,-588.967686,0.00018239,2]
[339197538,1727296233459,-588.967686,0.00018239,2]
[339197539,1727296233468,-151.0,0.00018239,2]
[339197540,1727296233477,-151.0,0.00018239,2]
[339197541,1727296233487,-151.0,0.00018239,2]
[339197542,1727296233496,-629.475163,0.00018239,2]
[339197543,1727296233506,-151.0,0.00018239,2]
[339197544,1727296233515,-629.475163,0.00018239,2]
[339197545,1727296233525,-151.0,0.00018239,2]
[339197546,1727296233535,-253.903047,0.00018239,2]
[339197547,1727296233544,-253.903047,0.00018239,2]
[339197548,1727296233554,-253.903047,0.00018239,2]
[339197549,1727296233563,-253.903047,0.00018239,2]
[339197550,1727296233576,-151.0,0.00018239,2]
[339197551,1727296233590,-151.0,0.00018239,2]
[339197552,1727296233734,-151.0,0.00018239,2]
[339197553,1727296233744,-151.0,0.00018239,2]
[339197554,1727296233755,-151.0,0.00018239,2]
[339197555,1727296233765,-151.0,0.00018239,2]
[339197556,1727296233775,-321.747253,0.00018239,2]
[339197557,1727296233786,-321.747253,0.00018239,2]
[339197558,1727296233796,-321.747253,0.00018239,2]
[339197559,1727296233806,-321.747253,0.00018239,2]
[339197560,1727296233816,-151.0,0.00018239,2]
[339197561,1727296233825,-151.0,0.00018239,2]
[339197562,1727296233835,-151.0,0.00018239,2]
[339197563,1727296233844,-151.0,0.00018239,2]
[339197564,1727296233854,-151.0,0.00018239,2]
[339197565,1727296233864,-255.341265,0.00018239,2]
[339197566,1727296233873,-255.341265,0.00018239,2]
[339197567,1727296233883,-151.0,0.00018239,2]
[339197568,1727296233892,-241.102295,0.00018239,2]
[339197569,1727296233902,-255.341265,0.00018239,2]
[339197570,1727296233912,-255.341265,0.00018239,2]
[339197571,1727296233921,-151.0,0.00018239,2]
[339197572,1727296233931,-151.0,0.00018239,2]
[339197573,1727296233943,-284.716702,0.00018239,2]
[339197574,1727296233953,-284.716702,0.00018239,2]
[339197575,1727296233963,-284.716702,0.00018239,2]
[339197576,1727296233972,-284.716702,0.00018239,2]
[339197577,1727296233982,-151.0,0.00018239,2]
[339197578,1727296233992,-151.0,0.00018239,2]
[339197579,1727296234001,-2000.0,0.00018239,2]
[339197580,1727296234011,-2000.0,0.00018239,2]
[339197581,1727296234020,-2000.0,0.00018239,2]
[339197582,1727296234029,-2000.0,0.00018239,2]
[339197583,1727296234039,-2000.0,0.00018239,2]
[339197584,1727296234048,-2000.0,0.00018239,2]
[339197585,1727296234057,-2000.0,0.00018239,2]
[339197586,1727296234066,-2000.0,0.00018239,2]
[339197587,1727296234076,-2000.0,0.00018239,2]
[339197588,1727296234086,-2000.0,0.00018239,2]
[339197589,1727296234095,-2000.0,0.00018239,2]
[339197590,1727296234104,-2000.0,0.00018239,2]
[339197591,1727296234114,-2000.0,0.00018239,2]
[339197592,1727296234123,-2000.0,0.00018239,2]
[339197593,1727296234133,-2000.0,0.00018239,2]
[339197594,1727296234142,-1719.583193,0.00018239,2]
[339197595,1727296234151,-151.0,0.00018239,2]
[339197596,1727296234161,-151.0,0.00018239,2]
[339197597,1727296234171,-151.0,0.00018239,2]
[339197598,1727296234180,-151.0,0.00018239,2]
[339197599,1727296234190,-151.0,0.00018239,2]
[339197600,1727296234199,-151.0,0.00018239,2]
[339197601,1727296234209,-166.543572,0.00018239,2]
[339197602,1727296234219,-166.543572,0.00018239,2]
[339197603,1727296234228,-166.543572,0.00018239,2]
[339197604,1727296234237,-166.543572,0.00018239,2]
[339197605,1727296234251,-151.0,0.00018239,2]
[339197606,1727296234261,-151.0,0.00018248,2]
[339197607,1727296234270,-151.0,0.00018248,2]
[339197608,1727296234280,-151.0,0.00018248,2]
[339197609,1727296234289,-151.0,0.00018248,2]
[339197610,1727296234299,-151.0,0.00018248,2]
[339197611,1727296234309,-1190.961065,0.00018248,2]
[339197612,1727296234318,-1190.961065,0.00018248,2]
[339197613,1727296234328,-151.0,0.00018248,2]
[339197614,1727296234337,-177.968963,0.00018248,2]
[339197615,1727296234347,-177.968963,0.00018248,2]
[339197616,1727296234357,-314.24280576,0.00018248,2]
[339197617,1727296234366,-500.0,0.00018248,2]
[339197618,1727296234376,-199.01274162,0.00018248,2]
[339197619,1727296234386,-171.18179866,0.00018248,2]
[339197620,1727296234396,-222.66506145,0.00018248,2]
[339197621,1727296234406,-500.0,0.00018248,2]
[339197622,1727296234416,-406.78681372,0.00018248,2]
[339197623,1727296234425,-3016.06833067,0.00018249,2]
[339197624,1727296234435,-151.0,0.00018249,2]
[339197625,1727296234445,-151.0,0.00018249,2]
[339197626,1727296234455,-151.0,0.00018249,2]
[339197627,1727296234465,-151.0,0.00018249,2]
[339197628,1727296234474,-151.0,0.00018249,2]
[339197629,1727296234484,-151.0,0.00018249,2]
[339197630,1727296234494,-151.0,0.00018249,2]
[339197631,1727296234503,-234.050078,0.00018249,2]
[339197632,1727296234512,-151.0,0.00018249,2]
[339197633,1727296234521,-203.176171,0.00018249,2]
[339197634,1727296234531,-178.852709,0.00018249,2]
[339197635,1727296234540,-178.852709,0.00018249,2]
[339197636,1727296234550,-178.852709,0.00018249,2]
[339197637,1727296234559,-178.852709,0.00018249,2]
[339197638,1727296234569,-151.0,0.00018249,2]
[339197639,1727296234579,-151.0,0.00018249,2]
[339197640,1727296234592,-151.0,0.00018249,2]
[339197641,1727296234602,-151.0,0.00018249,2]
[339197642,1727296234611,-151.0,0.00018249,2]
[339197643,1727296234621,-151.0,0.00018249,2]
[339197644,1727296234631,-151.0,0.00018249,2]
[339197645,1727296234640,-151.0,0.00018249,2]
[339197646,1727296234649,-588.967686,0.00018249,2]
[339197647,1727296234660,-588.967686,0.00018249,2]
[339197648,1727296234669,-588.967686,0.00018249,2]
[339197649,1727296234680,-588.967686,0.00018249,2]
[339197650,1727296234690,-151.0,0.00018249,2]
[339197651,1727296234699,-151.0,0.00018249,2]
[339197652,1727296234708,-151.0,0.00018249,2]
[339197653,1727296234718,-629.475163,0.00018249,2]
[339197654,1727296234728,-629.475163,0.00018249,2]
[339197655,1727296234737,-151.0,0.00018249,2]
[339197656,1727296234747,-151.0,0.00018249,2]
[339197657,1727296234757,-629.475163,0.00018249,2]
[339197658,1727296234767,-629.475163,0.00018249,2]
[339197659,1727296234776,-151.0,0.00018249,2]
[339197660,1727296234786,-253.903047,0.00018249,2]
[339197661,1727296234795,-253.903047,0.00018249,2]
[339197662,1727296234804,-253.903047,0.00018249,2]
[339197663,1727296234813,-253.903047,0.00018249,2]
[339197664,1727296234823,-151.0,0.00018249,2]
[339197665,1727296234832,-151.0,0.00018249,2]
[339197666,1727296234842,-151.0,0.00018249,2]
[339197667,1727296234851,-151.0,0.00018249,2]
[339197668,1727296234861,-268.02352,0.00018249,2]
[339197669,1727296234870,-321.747253,0.00018249,2]
[339197670,1727296234879,-321.747253,0.00018249,2]
[339197671,1727296234889,-321.747253,0.00018249,2]
[339197672,1727296234898,-321.747253,0.00018249,2]
[339197673,1727296234908,-151.0,0.00018249,2]
[339197674,1727296234918,-151.0,0.00018249,2]
[339197675,1727296234927,-151.0,0.00018249,2]
[339197676,1727296234936,-203.675212,0.00018249,2]
[339197677,1727296234945,-151.0,0.00018249,2]
[339197678,1727296234955,-151.0,0.00018249,2]
[339197679,1727296234965,-255.341265,0.00018249,2]
[339197680,1727296234975,-255.341265,0.00018249,2]
[339197681,1727296234984,-151.0,0.00018249,2]
[339197682,1727296234993,-151.0,0.00018249,2]
[339197683,1727296235003,-255.341265,0.00018249,2]
[339197684,1727296235013,-255.341265,0.00018249,2]
[339197685,1727296235022,-151.0,0.00018249,2]
[339197686,1727296235031,-151.0,0.00018249,2]
[339197687,1727296235041,-284.716702,0.00018249,2]
[339197688,1727296235050,-284.716702,0.00018249,2]
[339197689,1727296235060,-284.716702,0.00018249,2]
[339197690,1727296235070,-284.716702,0.00018249,2]
[339197691,1727296235079,-151.0,0.00018249,2]
[339197692,1727296235089,-1000.0,0.00018249,2]
[339197693,1727296235098,-1000.0,0.00018249,2]
[339197694,1727296235113,-1000.0,0.00018249,2]
[339197695,1727296235125,-1000.0,0.00018249,2]
[339197696,1727296235134,-1000.0,0.00018249,2]
[339197697,1727296235143,-1000.0,0.00018249,2]
[339197698,1727296235152,-1000.0,0.00018249,2]
[339197699,1727296235161,-1000.0,0.00018249,2]
[339197700,1727296235170,-1000.0,0.00018249,2]
[339197701,1727296235179,-1000.0,0.00018249,2]